Cogmind - Beta 13 @@@ ROGUE MODE // 2024.04.01 @ 14:50:26 Player: Toa of Guts Result: Destroyed by S-10 Pest with Light Assault Rifle Performance ------------- Evolutions (1) 500 Regions Visited (2) 400 Robots Destroyed (14) 70 Value Destroyed (392) 392 Prototype IDs (0) 0 Alien Tech Used (0) 0 Bonus (0) 0 TOTAL SCORE: 1362 Bonus ------- None Cogmind --------- Core Integrity 0/400 Matter 266/300 Energy 57/100 System Corruption 0% Temperature Cool (6) Movement Core (50) Location -9/Materials Parts ------- > --- POWER (1) -------- (None) > --- PROPULSION (2) --- (None) > --- UTILITY (4) ------ Hacking Suite > --- WEAPON (2) ------- (None) > --- INVENTORY (5) ---- Transport Network Coupler Improved Power Shielding Improved Power Shielding Hacking Suite Hacking Suite Peak State ------------ > --- POWER ------------ (None) > --- PROPULSION ------- Light Treads Improved Treads > --- UTILITY ---------- Huge Storage Unit Signal Interpreter Utility Shielding > --- WEAPON ----------- Particle Gun Mining Laser > --- INVENTORY -------- Ion Engine Ion Engine Light Treads Aluminum Leg Aluminum Leg Improved Heat Sink Terrain Scanner Terrain Scan Processor Transport Network Coupler Improved Power Shielding Improved Power Shielding Improved Power Shielding Improved Power Shielding Hacking Suite Hacking Suite Hacking Suite Hacking Suite [Rating: 12] Favorites ----------- Power None Propulsion Light Treads Treads Light Treads Leg Aluminum Leg Wheel Compact Wheel Utility Signal Interpreter Device Structural Scanner Storage Huge Storage Unit Processor Signal Interpreter Hackware Hacking Suite Protection Utility Shielding Weapon Light Assault Rifle Energy Gun Particle Gun Ballistic Gun Light Assault Rifle Launcher Grenade Launcher Special Weapon Mining Laser Build | -11 -10 -9 ------- Run | Yrd Mat Mat Slots Evolved 2 | . . 2 Power . | . . . Propulsion . | . . . Utility 2 | . . 2 Weapon . | . . . Parts Attached 25 | 7 5 13 Power . | . . . Engine . | . . . Core . | . . . Reactor . | . . . Propulsion 10 | 4 2 4 Treads 6 | 2 . 4 Leg 1 | 1 . . Wheel 3 | 1 2 . Hover . | . . . Flight . | . . . Utility 9 | 1 2 6 Device 2 | . . 2 Storage 2 | 1 1 . Processor 1 | . 1 . Hackware 1 | . . 1 Protection 3 | . . 3 Artifact . | . . . Weapon 6 | 2 1 3 Energy Gun 2 | 1 . 1 Energy Cannon . | . . . Ballistic Gun 1 | 1 . . Ballistic Cannon . | . . . Launcher 1 | . 1 . Special Weapon 2 | . . 2 Impact Weapon . | . . . Slashing Weapon . | . . . Piercing Weapon . | . . . Special Melee Weapon . | . . . Unidentified Prototypes . | . . . Parts Lost 10 | . 1 9 Power . | . . . Propulsion 4 | . . 4 Utility 3 | . . 3 Weapon 3 | . 1 2 Highest Loss Streak 5 | . 1 5 To Critical Strikes . | . . . Average Slot Usage (%) 73 | . 78 66 Treads 16 | . 19 11 Wheel 7 | . 8 7 Device 2 | . . 5 Storage 12 | . 14 11 Processor 9 | . 9 9 Protection 4 | . . 10 Energy Gun 2 | . . 5 Ballistic Gun 10 | . 14 4 Launcher 6 | . 10 . Naked Turns 1 | . . 1 Heaviest Build 87 | 8 84 87 Greatest Support 43 | 40 40 43 Greatest Overweight (x) 27 | 1 2 27 Average Overweight (x) . | . . 1 Largest Inventory Capacity 25 | 8 25 25 Average Capacity 17 | 7 13 24 Most Carried 19 | 8 13 19 Average Carried 11 | 5 7 16 Final Capacity 25 | 8 25 5 Final Carried 13 | 7 13 5 Class Distribution -------------------- 100% | Mutant Dominant Class ---------------- Mutant | -10/Materials Mutant | -9/Materials Resources | -11 -10 -9 ----------- Run | Yrd Mat Mat Matter Collected 487 | 216 85 186 Remotely . | . . . Salvage Created 380 | . 97 283 Parts 33 | . 13 20 Haulers Intercepted . | . . . Recyclers Shooed . | . . . Parts Field Recycled . | . . . Retrieved Matter . | . . . Parts Self-Destructed . | . . . Prevented . | . . . Kills | -11 -10 -9 ------- Run | Yrd Mat Mat Combat Hostiles Destroyed 12 | . 3 9 Melee 1 | . . 1 Guns 11 | . 3 8 Classes Destroyed 6 | . 3 3 Builder 1 | . 1 . Watcher 1 | . 1 . Swarmer 4 | . . 4 Grunt 6 | . 3 3 Brawler 1 | . . 1 Sentry 1 | . . 1 Best Kill Streak 6 | . 3 6 Combat Bots Only 6 | . 2 6 Max Kills in Single Turn 1 | . 1 1 Gunslinging . | . . . Exploded . | . . . Melee 1 | . . 1 Uniques/NPCs Destroyed . | . . . Combat | -11 -10 -9 -------- Run | Yrd Mat Mat Hostile Shots Fired 210 | . 32 178 Missed 59 | . 13 46 Damage Taken 1459 | . 232 1227 Core 479 | . 73 406 Absorbed by Shields . | . . . Redirected to Shielding 37 | . . 37 Core Remaining (%) 85 | 100 70 . Volleys Fired 82 | . 27 55 Largest 2 | . 2 1 Hottest 100 | . 50 100 Shots Fired 89 | . 34 55 Gun 81 | . 27 54 Cannon . | . . . Launcher 7 | . 7 . Special 1 | . . 1 Kinetic 54 | . 27 27 Thermal 28 | . . 28 Explosive 7 | . 7 . Electromagnetic . | . . . Robot Hit Streak 9 | . 3 9 Robot Miss Streak 5 | . 5 2 Penetration Max . | . . . Secondary Targets . | . . . Shots Hit Robots 51 | . 10 41 Core Hits 29 | . 14 15 Critical Kills 1 | . . 1 Critical Parts Destroyed . | . . . Critical Strikes 1 | . . 1 Destroy 1 | . . 1 Melee Attacks . | . . . Impact . | . . . Slashing . | . . . Piercing . | . . . Sneak Attacks . | . . . Combat Hostiles . | . . . Follow-up Attacks . | . . . Damage Inflicted 922 | . 404 518 Guns 561 | . 72 489 Cannons . | . . . Explosions 332 | . 332 . Melee . | . . . Ramming 5 | . . 5 Kinetic 252 | . 72 180 Thermal 333 | . . 333 Explosive 332 | . 332 . Electromagnetic . | . . . Impact . | . . . Slashing . | . . . Piercing . | . . . Highest Corruption . | . . . Average Corruption . | . . . Corruption Purged . | . . . Corruption Blocked . | . . . Overload Shots . | . . . Overflow Damage 21 | . 21 . Projectiles . | . . . Explosions 21 | . 21 . Melee . | . . . Knockbacks . | . . . Impact . | . . . Kinetic . | . . . Secondary . | . . . Self-Inflicted Damage 26 | . 26 . Shots 1 | . 1 . Rammed 2 | . . 2 Targets Rammed 2 | . . 2 Kicked . | . . . Crushed . | . . . Highest Temperature 90 | . 21 90 Average Temperature 27 | . 7 29 Received Heat Transfer 321 | . 63 258 Siege Activations . | . . . Robots Corrupted . | . . . Combat Hostiles . | . . . Parts Fried . | . . . Impact Corruptions . | . . . Robots Melted . | . . . Combat Hostiles . | . . . Parts Melted 1 | . . 1 Heat Transferred 790 | . . 790 Parts Sabotaged . | . . . Parts Stolen . | . . . Parts Stripped . | . . . Power Chain Reactions . | . . . Alert | -11 -10 -9 ------- Run | Yrd Mat Mat Peak Influence 323 | . 129 323 Initial 53 | . . 53 Average 89 | . 53 155 Maximum Alert Level 1 | . . 1 Low Security (%) 86 | 100 100 64 Level 1 13 | . . 35 Level 2 . | . . . Level 3 . | . . . Level 4 . | . . . Level 5 . | . . . High Security . | . . . Max Security . | . . . Squads Dispatched . | . . . Investigation . | . . . Extermination . | . . . Reinforcement . | . . . Assault . | . . . Garrison . | . . . Intercept . | . . . Searches Triggered . | . . . Construction Impeded . | . . . Haulers Reinforced . | . . . Active Scanning Responses . | . . . Cargo Convoy Interrupts . | . . . Stealth | -11 -10 -9 --------- Run | Yrd Mat Mat Distress Signals 1 | . . 1 Communications Jammed . | . . . Distress Signals . | . . . Times Spotted 38 | . 12 26 Peak Tracking Total 8 | . 5 8 Tactical Retreats 3 | . . 3 Traps | -11 -10 -9 ------- Run | Yrd Mat Mat Traps Triggered 1 | . 1 . Indirectly . | . . . Trap Hack Attempts . | . . . Triggered . | . . . Disarmed . | . . . Reprogrammed . | . . . Reused . | . . . Traps Extracted . | . . . Installed . | . . . Triggered . | . . . Machines | -11 -10 -9 ---------- Run | Yrd Mat Mat Machines Disabled 2 | . 2 . Max in Single Turn 2 | . 2 . Machines Repaired . | . . . Machines Dismantled . | . . . Machines Sabotaged . | . . . Overloaded Fab Kills . | . . . Hacking | -11 -10 -9 --------- Run | Yrd Mat Mat Machines Accessed 1 | . 1 . Terminals 1 | . 1 . Fabricators . | . . . Repair Stations . | . . . Recycling Units . | . . . Scanalyzers . | . . . Garrison Access . | . . . Total Hacks 1 | . 1 . Successful 1 | . 1 . Failed . | . . . Catastrophic . | . . . Database Lockouts . | . . . Manual . | . . . Terminals 1 | . 1 . Fabricators . | . . . Repair Stations . | . . . Recycling Units . | . . . Scanalyzers . | . . . Garrison Access . | . . . Terminal Hacks 1 | . 1 . Emergency Access Points 1 | . 1 . Fabricator Hacks . | . . . Repair Station Hacks . | . . . Recycling Unit Hacks . | . . . Scanalyzer . | . . . Garrison Access Hacks . | . . . Unauthorized Hacks . | . . . Terminals . | . . . Fabricators . | . . . Repair Stations . | . . . Recycling Units . | . . . Scanalyzers . | . . . Garrison Access . | . . . Data Cores Recovered . | . . . Used . | . . . Hacking Detections 1 | . 1 . Full Trace Events . | . . . Feedback Events . | . . . Feedback Blocked . | . . . Robot Schematics Acquired . | . . . Robots Built . | . . . Authchips . | . . . Time . | . . . Total Robot Build Rating . | . . . Part Schematics Acquired . | . . . Parts Built . | . . . Authchips . | . . . Time . | . . . Total Part Build Rating . | . . . Parts Repaired . | . . . Time . | . . . Parts Recycled . | . . . Recycled Matter . | . . . Retrieved Matter . | . . . Retrieved Components . | . . . Parts Scanalyzed . | . . . Part Schematics Acquired . | . . . Parts Damaged . | . . . Bothacking | -11 -10 -9 ------------ Run | Yrd Mat Mat Used RIF Installer . | . . . Robots Hacked . | . . . Non-combat . | . . . Combat . | . . . Robot Hacks Applied . | . . . Relay Couplers Released . | . . . Fabnet Peak Effective % . | . . . Robots Rewired . | . . . Allies Hacked . | . . . Hacks Repelled . | . . . Allies | -11 -10 -9 -------- Run | Yrd Mat Mat Total Allies . | . . . Largest Group . | . . . Highest-Rated Group . | . . . Highest-Rated Ally . | . . . Total Orders . | . . . Ally Attacks . | . . . Total Damage . | . . . Kills . | . . . Allies Corrupted . | . . . Allies Melted . | . . . Intel | -11 -10 -9 ------- Run | Yrd Mat Mat Robot Analysis Total . | . . . Derelict Logs Recovered . | . . . Drone Launches . | . . . Drone Recoveries . | . . . Exploration | -11 -10 -9 ------------- Run | Yrd Mat Mat Turns Passed 1152 | 57 659 436 Spaces Moved 565 | 34 385 146 Core 22 | 18 . 4 Treads 333 | 15 261 57 Legs . | . . . Wheels 210 | 1 124 85 Hover . | . . . Flight . | . . . Fastest Speed 50 | 50 130 50 Average Speed 158 | 105 150 193 Slowest Speed 1400 | 160 160 1400 Overloaded Moves . | . . . Propulsion Burnouts . | . . . Robots Hopped . | . . . Cave-ins Triggered . | . . . Exploration Rate (%) 27 | 4 61 16 Regions Visited 2 Branch Regions . Pre-discovered Areas . | . . . Known Exits Taken 1 | . 1 . Unknown Exits Taken 1 | 1 . . Scrap Searched . | . . . Spaces Dug . | . . . Terrain Destroyed 33 | . 33 . Melee . | . . . Projectile . | . . . AOE 33 | . 33 . Terrain Rammed . | . . . Walls Destroyed . | . . . Machines Disabled . | . . . Actions | -11 -10 -9 --------- Run | Yrd Mat Mat Total 730 | 52 436 242 Wait 26 | 4 8 14 Move 563 | 33 384 146 Hop . | . . . Pick Up 28 | 8 9 11 Fast Attach 5 | 4 . 1 Attach 11 | 1 1 9 Detach 1 | . . 1 Swap 9 | 2 4 3 Drop 3 | . 3 . Fire 82 | . 27 55 Melee . | . . . Ram . | . . . Kick . | . . . Crush 2 | . . 2 Escape Stasis . | . . . Rewire . | . . . Trap . | . . . Miscellaneous . | . . . Route ------- -11/Scrapyard -10/Materials (discovered 2 exits: *Mat / *Min) -9/Materials History --------- Turn | Location | Event 12 | -11/Scrapyard | Discovered new exit (range 15) 58 | -11/Scrapyard | Entered Materials 147 | -10/Materials | Discovered new exit (range 10) 315 | -10/Materials | Build established: Mutant 338 | -10/Materials | Identified exit to Mines 582 | -10/Materials | Discovered new exit (range 12) 613 | -10/Materials | Identified exit to Materials 717 | -10/Materials | Entered another Materials area 717 | -9/Materials | Evolved 2 slots: Utility x2 944 | -9/Materials | Lost 4 parts (2n1u1w) 1105 | -9/Materials | Core integrity fell below 50% 1146 | -9/Materials | Core integrity fell below 20% 1150 | -9/Materials | Released all parts (4) 1153 | -9/Materials | Destroyed by S-10 Pest with Light Assault Rifle Last Messages --------------- S-10 Pest destroyed. Signal Interpreter destroyed. W-16 Scout sends out distress signal. Acquired Lgt. Armor Plating. Lgt. Treads destroyed. K-01 Serf cleans the Terminal. S-10 Pest suffers critical hit (Destroy). Lgt. Armor Plating destroyed. Particle Gun destroyed. K-01 Serf cleans the Terminal. K-01 Serf collects debris. Lgt. Treads destroyed. Released Utility Shielding. Released Huge Storage Unit. Released Imp. Treads. Released Mining Laser. K-01 Serf collects debris. K-01 Serf cleans the Terminal. Acquired Hacking Suite. S-10 Pest destroyed. Map ----- +----------------------------------------------------+ | ?????????????????????????????????????????????????? | | ?????????????????????????????????????????????????? | | ?????????????????????????????????????????????????? | | ?????????????????????????????????????????????????? | | ?????????????????????????????????????????????????? | | ?????????????????????????????????????????????????? | | ?????????????????????????????????????????????????? | | ?????????????????????????????????????????????????? | | ?????????????????????????????????????????????????? | | ?????????????????????????????????????????????????? | | ?????????????????????????????????????????????????? | | ?????????????????????????????????????????????????? | | ?????????????????????????????????????????????????? | | ?????????????????????????????????????????????????? | | ?????????????????????????????????????????????????? | | ?????????????????????????????????????????????????? | | ???????????????????????????????????????????? ##? | | ???????????????????????????????????????????? ##? | | ??????????????????????????????????????????## ##? | | ??????????????????????????????????????????## ##? | | ???????????????????????????????#######????## ### | | ??????????????????????????????## ####### ### | | ???????????##################### | | ??????????Y !!! ### ? | | ?????????? !! * ### ?? | | ?????????? !! %@=! ""# ####### ### | | ???????????# |s* *T"## ######## ##? | | ??????????## u!s!!""## #= # ##? | | ??????????""k """gs#### #%""" # ##? | | ??????????"" """ #### + """ # ##? | | ??????????"T """ #=""" + ##? | | ??????????"" =k #%= # ##? | | ??????????"" * # ! ## ###? | | ???????????# """ a ############+########## ###? | | ????????????? """ # # ###### ##?? | | ????????????? """ ???????# """ """ #?#### #### | | ??????????????""" r ????????# """ """ #?#### #### | | ?????????????? ?????????# """ """ #?## ## | | ???????????? ?????????# #### | | ???????????? [%??????????# *!! #?## | | ????????????# ??????????# *!! #### | | ????????????# ???????????# *! #?## ## | | ????????????# ???????????## ########?## ## | | ????????????# ?????????????###????????## # | | ????????????? ????????????????????????## [[ # | | ??????????????? ???????????????????????#?## [[ # | | ?????????????????????????????????????????######### | | ?????????????????????????????????????????######### | | ?????????????????????????????????????????????????? | | ?????????????????????????????????????????????????? | +----------------------------------------------------+ Best States ------------- Heat Dissipation 28 Energy Generation 5 Energy Capacity 100 Matter Stores 286 Matter Capacity 300 Sight Range 16 Terrain Scan Range 14 Terrain Scan Density 10 Armor Coverage 150 Utility Shielding 33 Evasion (%) 50 Recoil Reduction 2 Item Schematics ----------------- None Robot Schematics ------------------ None Fabricated ------------ Nothing Alien Tech Used ----------------- None Achievements -------------- Fist Fight Challenges ------------ None Game ------ Seed GrenadeDeepLaser Manual? 0 Play Time 00:21:06 Cumulative 12.5 hours Start 2024.04.01 @ 14:28:09 End 2024.04.01 @ 14:50:26 Sessions 1 Manual Loads 0 Difficulty Rogue Special Mode None Game No. 12 Rogue 12 Adventurer 0 Explorer 0 Win Type - Total 0 Types 0/0/0/0/0/0/0/0/0 Lore% 11 Gallery% 16 Achievement% 14 Wizard Run 0 Options --------- Layout 0 ASCII 0 Keyboard 0 Movement Mouse Keybinds 0 Fullscreen 1 Font 24/X11 Map View 76x50 Zoom Use 3% Tactical HUD 0 Map Filters NONE Filters NONE Steam 1 RUN: 849c9478-8241-4979-a4a5-6e242f4def90